{"text_format":"3","workbook":"xlsx","n_sheets":2,"sheets":["Śledzenie potwierdzeń obecności","Podsumowanie potwierdzeń..."],"not_rendered":{"charts":2,"defined_names":22},"read":"whole","date_system":"1900"}

{"sheet":"Śledzenie potwierdzeń obecności","index":0,"n_rows":15,"n_cols":15,"rows_kept":15,"merged":[[0,3,0,4],[0,5,0,7],[1,3,1,14]]}
[{"$nulls":5},"PODSUMOWANIE POTWIERDZEŃ OBECNOŚCI"]
[null,"DATA ŚLUBU",null,"śledzenie zaproszeń na ślub"]
[null,{"$f":"TODAY()+283","v":"2019-06-23"},null,"IMIĘ I NAZWISKO GOŚCIA","WYSŁANE?","POTWIERDZENIE","LICZEBNOŚĆ","GOŚĆ","RELACJA","ADRES","MIASTO","WOJEWÓDZTWO","KOD POCZTOWY","TELEFON","ADRES E-MAIL DO KONTAKTU"]
[null,"POZOSTAŁO DNI",null,"Imię i nazwisko 1","Tak","Tak",1,"Panna młoda","Brat","Adres","Miasto","Województwo","KOD POCZTOWY","Telefon","osoba@example.com"]
[null,{"$f":"Pozostało_dni","v":283},null,"Imię i nazwisko 2","Tak","Nie",3,"Panna młoda","Znajomy","Adres","Miasto","Województwo","KOD POCZTOWY","Telefon","osoba@example.com"]
[null,"OSOBY OBECNE",null,"Imię i nazwisko 3","Tak","Tak",1,"Inne","Znajomy","Adres","Miasto","Województwo","KOD POCZTOWY","Telefon","osoba@example.com"]
[null,{"$f":"Suma_osób_obecnych","v":12},null,"Imię i nazwisko 4","Tak","Nie",2,"Pan młody","Znajomy","Adres","Miasto","Województwo","KOD POCZTOWY","Telefon","osoba@example.com"]
[null,"OSOBY NIEOBECNE",null,"Imię i nazwisko 5","Tak","Tak",2,"Pan młody","Znajomy","Adres","Miasto","Województwo","KOD POCZTOWY","Telefon","osoba@example.com"]
[null,{"$f":"Suma_osób_nieobecnych","v":6},null,"Imię i nazwisko 6","Tak","Wstępna akceptacja",null,"Inne","Znajomy","Adres","Miasto","Województwo","KOD POCZTOWY","Telefon","osoba@example.com"]
[null,"ZALEGŁE",null,"Imię i nazwisko 7","Tak","Tak",2,"Pan młody","Znajomy","Adres","Miasto","Województwo","KOD POCZTOWY","Telefon","osoba@example.com"]
[null,{"$f":"Suma_zaległych","v":1},null,"Imię i nazwisko 8","Tak","Nie",1,"Inne","Znajomy","Adres","Miasto","Województwo","KOD POCZTOWY","Telefon","osoba@example.com"]
[{"$nulls":3},"Imię i nazwisko 9","Tak","Tak",4,"Panna młoda","Znajomy","Adres","Miasto","Województwo","KOD POCZTOWY","Telefon","osoba@example.com"]
[{"$nulls":3},"Imię i nazwisko 10","Tak","Tak",2,"Panna młoda","Znajomy","Adres","Miasto","Województwo","KOD POCZTOWY","Telefon","osoba@example.com"]
[{"$nulls":3},"Imię i nazwisko 11","Tak",null,null,"Pan młody","Brat","Adres","Miasto","Województwo","KOD POCZTOWY","Telefon","osoba@example.com"]
[{"$nulls":3},"SUMY:",{"$f":"COUNTIF('Śledzenie potwierdzeń obecności'!$E$4:$E$14,\"Tak\")","v":11},{"$f":"COUNTA('Śledzenie potwierdzeń obecności'!$F$4:$F$14)","v":10},{"$f":"SUBTOTAL(109,tabela_zaproszenia[LICZEBNOŚĆ])","v":18}]

{"sheet":"Podsumowanie potwierdzeń...","index":1,"n_rows":11,"n_cols":15,"rows_kept":11,"merged":[[0,3,0,4],[0,5,0,8],[1,3,1,11],[2,3,6,3],[2,4,6,4],[7,3,11,3],[7,4,11,4]]}
[{"$nulls":3},"ŚLEDZENIE POTWIERDZEŃ OBECNOŚCI"]
[null,"DATA ŚLUBU",null,"podsumowanie potwierdzeń obecności",{"$nulls":10},"notatki"]
[null,{"$f":"Data_ślubu","v":"2019-06-23"},null,"TAK","Ta komórka zawiera wykres słupkowy grupowany przedstawiający typy gości, którzy potwierdzili obecność."]
[null,"POZOSTAŁO DNI",{"$nulls":3},"INNE",{"$f":"IFERROR(SUMIFS(tabela_zaproszenia[LICZEBNOŚĆ],tabela_zaproszenia[GOŚĆ],\"=Inne\",tabela_zaproszenia[POTWIERDZENIE],\"Tak\"),0)","v":1},{"$f":"tabela_zaproszenia[[#Totals],[WYSŁANE?]]","v":11}]
[null,{"$f":"Pozostało_dni","v":283},{"$nulls":3},"PAN MŁODY",{"$f":"IFERROR(SUMIFS(tabela_zaproszenia[LICZEBNOŚĆ],tabela_zaproszenia[GOŚĆ],\"=Pan młody\",tabela_zaproszenia[POTWIERDZENIE],\"Tak\"),0)","v":4},{"$f":"tabela_zaproszenia[[#Totals],[WYSŁANE?]]","v":11}]
[null,"OSOBY OBECNE",{"$nulls":3},"PANNA MŁODA",{"$f":"IFERROR(SUMIFS(tabela_zaproszenia[LICZEBNOŚĆ],tabela_zaproszenia[GOŚĆ],\"=Panna młoda\",tabela_zaproszenia[POTWIERDZENIE],\"Tak\"),0)","v":7},{"$f":"tabela_zaproszenia[[#Totals],[WYSŁANE?]]","v":11}]
[null,{"$f":"Suma_osób_obecnych","v":12}]
[null,"OSOBY NIEOBECNE",null,"NIE","Ta komórka zawiera wykres słupkowy grupowany przedstawiający typy gości, którzy poinformowali, że nie będą obecni."]
[null,{"$f":"Suma_osób_nieobecnych","v":6},{"$nulls":3},"INNE",{"$f":"IFERROR(SUMIFS(tabela_zaproszenia[LICZEBNOŚĆ],tabela_zaproszenia[GOŚĆ],\"=Inne\",tabela_zaproszenia[POTWIERDZENIE],\"Nie\"),0)","v":1},{"$f":"tabela_zaproszenia[[#Totals],[WYSŁANE?]]","v":11}]
[null,"ZALEGŁE",{"$nulls":3},"PAN MŁODY",{"$f":"IFERROR(SUMIFS(tabela_zaproszenia[LICZEBNOŚĆ],tabela_zaproszenia[GOŚĆ],\"=Pan młody\",tabela_zaproszenia[POTWIERDZENIE],\"Nie\"),0)","v":2},{"$f":"tabela_zaproszenia[[#Totals],[WYSŁANE?]]","v":11}]
[null,{"$f":"Zaległe_potwierdzenia","v":1},{"$nulls":3},"PANNA MŁODA",{"$f":"IFERROR(SUMIFS(tabela_zaproszenia[LICZEBNOŚĆ],tabela_zaproszenia[GOŚĆ],\"=Panna młoda\",tabela_zaproszenia[POTWIERDZENIE],\"Nie\"),0)","v":3},{"$f":"tabela_zaproszenia[[#Totals],[WYSŁANE?]]","v":11}]